[Event "*** Titled Tuesday Blitz"]
[Site "Chess.com"]
[Date "2020.04.21"]
[Round "1"]
[White "SloLev"]
[Black "Chessy222222"]
[Result "1-0"]
[WhiteElo "2515"]
[BlackElo "2095"]
[TimeControl "180+1"]
[EndTime "10:06:45 PDT"]
[Termination "SloLev won on time"]

1. e4 {[%clk 0:02:58.2]} 1... e5 {[%clk 0:02:59.7]} 2. Nf3 {[%clk 0:02:57.8]}
2... Nc6 {[%clk 0:02:59.8]} 3. d4 {[%clk 0:02:58.3]} 3... exd4 {[%clk
0:02:59.5]} 4. Nxd4 {[%clk 0:02:59.2]} 4... Bc5 {[%clk 0:02:59.6]} 5. Be3 {[%clk
0:02:58.8]} 5... Qf6 {[%clk 0:02:59.9]} 6. c3 {[%clk 0:02:58.8]} 6... Nge7
{[%clk 0:02:58]} 7. Bc4 {[%clk 0:02:58.1]} 7... b6 {[%clk 0:02:58.3]} 8. O-O
{[%clk 0:02:57.5]} 8... Bb7 {[%clk 0:02:58]} 9. Nb5 {[%clk 0:02:54]} 9... O-O-O
{[%clk 0:02:56.9]} 10. Bxc5 {[%clk 0:02:45.1]} 10... bxc5 {[%clk 0:02:56.4]} 11.
Qe2 {[%clk 0:02:36]} 11... d5 {[%clk 0:02:31.2]} 12. exd5 {[%clk 0:02:16.8]}
12... Nxd5 {[%clk 0:02:32.1]} 13. Nd2 {[%clk 0:02:02.4]} 13... Nf4 {[%clk
0:02:17.5]} 14. Qg4+ {[%clk 0:02:02.5]} 14... Kb8 {[%clk 0:02:17.2]} 15. Ne4
{[%clk 0:02:01.1]} 15... Qe5 {[%clk 0:01:48.1]} 16. Ng3 {[%clk 0:01:52.2]} 16...
Na5 {[%clk 0:01:36.8]} 17. Bb3 {[%clk 0:01:44.8]} 17... Bxg2 {[%clk 0:01:23.9]}
18. Rfe1 {[%clk 0:01:34.5]} 18... Qf6 {[%clk 0:01:15.5]} 19. Nh5 {[%clk
0:01:23.3]} 19... Nxh5 {[%clk 0:00:51.6]} 20. Qxg2 {[%clk 0:01:17.7]} 20... Nf4
{[%clk 0:00:50.5]} 21. Qf3 {[%clk 0:01:15.7]} 21... Rd3 {[%clk 0:00:39.8]} 22.
Qe4 {[%clk 0:01:12.8]} 22... Qg5+ {[%clk 0:00:31.1]} 23. Kh1 {[%clk 0:01:10.5]}
23... Rh3 {[%clk 0:00:22]} 24. Re3 {[%clk 0:01:05.6]} 24... Rxe3 {[%clk
0:00:12.7]} 25. fxe3 {[%clk 0:01:06.5]} 25... Ne6 {[%clk 0:00:12.3]} 26. Bxe6
{[%clk 0:01:01.4]} 26... fxe6 {[%clk 0:00:13.2]} 27. Qxe6 {[%clk 0:00:59.9]}
27... Rf8 {[%clk 0:00:09.6]} 28. Rg1 {[%clk 0:00:54.6]} 28... Qf6 {[%clk
0:00:02.3]} 29. Qxf6 {[%clk 0:00:52.8]} 29... gxf6 {[%clk 0:00:03.2]} 30. Rg7
{[%clk 0:00:52.6]} 30... Nc6 {[%clk 0:00:02.4]} 31. Nxc7 {[%clk 0:00:47.8]} 1-0

[Event "*** Titled Tuesday Blitz"]
[Site "Chess.com"]
[Date "2020.04.21"]
[Round "1"]
[White "SantoBlue"]
[Black "Sanyura"]
[Result "1-0"]
[WhiteElo "2821"]
[BlackElo "2432"]
[TimeControl "180+1"]
[EndTime "10:06:46 PDT"]
[Termination "SantoBlue won by resignation"]

1. e4 {[%clk 0:02:52.5]} 1... c5 {[%clk 0:02:55.6]} 2. Nf3 {[%clk 0:02:50.6]}
2... e6 {[%clk 0:02:55.6]} 3. Nc3 {[%clk 0:02:48.2]} 3... Nc6 {[%clk 0:02:51.9]}
4. d4 {[%clk 0:02:48.1]} 4... cxd4 {[%clk 0:02:47.9]} 5. Nxd4 {[%clk 0:02:48.5]}
5... Nf6 {[%clk 0:02:45.8]} 6. Ndb5 {[%clk 0:02:45.9]} 6... Bc5 {[%clk
0:02:45.1]} 7. Nd6+ {[%clk 0:02:35.4]} 7... Ke7 {[%clk 0:02:44.1]} 8. Bf4 {[%clk
0:02:31.5]} 8... e5 {[%clk 0:02:26.4]} 9. Nf5+ {[%clk 0:02:29.9]} 9... Kf8
{[%clk 0:02:27]} 10. Bg5 {[%clk 0:02:25.1]} 10... d6 {[%clk 0:02:11]} 11. Ne3
{[%clk 0:02:06.7]} 11... h6 {[%clk 0:01:37.2]} 12. Bxf6 {[%clk 0:02:06.2]} 12...
Qxf6 {[%clk 0:01:38.1]} 13. Ncd5 {[%clk 0:02:05.8]} 13... Qg6 {[%clk 0:01:37.3]}
14. Bd3 {[%clk 0:02:06.2]} 14... Be6 {[%clk 0:01:36]} 15. O-O {[%clk 0:02:04.6]}
15... Rd8 {[%clk 0:01:31]} 16. Kh1 {[%clk 0:01:59.3]} 16... h5 {[%clk
0:01:21.5]} 17. f4 {[%clk 0:01:58.9]} 17... Bxd5 {[%clk 0:01:02.4]} 18. Nxd5
{[%clk 0:01:05.1]} 18... Ne7 {[%clk 0:00:59.7]} 19. Bc4 {[%clk 0:00:58.2]} 19...
Qxe4 {[%clk 0:00:37.7]} 20. Bb3 {[%clk 0:00:58.3]} 20... Nxd5 {[%clk 0:00:33.3]}
21. Bxd5 {[%clk 0:00:58.1]} 21... Qd4 {[%clk 0:00:33.6]} 22. Qf3 {[%clk
0:00:57.4]} 22... f6 {[%clk 0:00:27.5]} 23. Bb3 {[%clk 0:00:41.8]} 23... e4
{[%clk 0:00:20.1]} 24. Qh3 {[%clk 0:00:41.8]} 24... d5 {[%clk 0:00:18.9]} 25.
Rad1 {[%clk 0:00:41.2]} 25... Qe3 {[%clk 0:00:18.6]} 26. Qe6 {[%clk 0:00:41.8]}
26... Be7 {[%clk 0:00:05.7]} 27. Rxd5 {[%clk 0:00:36.5]} 27... Re8 {[%clk
0:00:02.5]} 28. Rxh5 {[%clk 0:00:32.8]} 1-0

[Event "*** Titled Tuesday Blitz"]
[Site "Chess.com"]
[Date "2020.04.21"]
[Round "1"]
[White "tteshan"]
[Black "Szparu"]
[Result "0-1"]
[WhiteElo "2228"]
[BlackElo "2581"]
[TimeControl "180+1"]
[EndTime "10:06:46 PDT"]
[Termination "Szparu won by resignation"]

1. d4 {[%clk 0:03:00.9]} 1... Nf6 {[%clk 0:02:58.2]} 2. c4 {[%clk 0:03:00.3]}
2... g6 {[%clk 0:02:56.5]} 3. Nc3 {[%clk 0:02:59.6]} 3... d5 {[%clk 0:02:56]} 4.
cxd5 {[%clk 0:02:58.8]} 4... Nxd5 {[%clk 0:02:53.5]} 5. e4 {[%clk 0:02:59.1]}
5... Nxc3 {[%clk 0:02:49.2]} 6. bxc3 {[%clk 0:03:00]} 6... Bg7 {[%clk
0:02:49.8]} 7. Bc4 {[%clk 0:02:55.4]} 7... c5 {[%clk 0:02:49.7]} 8. Be3 {[%clk
0:02:53.9]} 8... Nc6 {[%clk 0:02:48.6]} 9. Ne2 {[%clk 0:02:54.1]} 9... O-O
{[%clk 0:02:45.8]} 10. O-O {[%clk 0:02:53]} 10... Bd7 {[%clk 0:02:41.8]} 11. Rc1
{[%clk 0:02:50.6]} 11... Qc7 {[%clk 0:02:35]} 12. Qd2 {[%clk 0:02:30.2]} 12...
Rfd8 {[%clk 0:02:30.2]} 13. Bh6 {[%clk 0:02:15.1]} 13... Bh8 {[%clk 0:02:25.6]}
14. Rfd1 {[%clk 0:01:48.3]} 14... Rac8 {[%clk 0:02:23.3]} 15. Bb3 {[%clk
0:01:38.8]} 15... b6 {[%clk 0:02:22.4]} 16. d5 {[%clk 0:01:21.4]} 16... Na5
{[%clk 0:02:09]} 17. Qf4 {[%clk 0:01:13.2]} 17... Be5 {[%clk 0:02:02.4]} 18. Qh4
{[%clk 0:01:07.4]} 18... Be8 {[%clk 0:01:59.6]} 19. Bf4 {[%clk 0:01:01.6]} 19...
f6 {[%clk 0:01:51.8]} 20. Bxe5 {[%clk 0:01:00.3]} 20... Qxe5 {[%clk 0:01:51.6]}
21. Qf4 {[%clk 0:00:53.1]} 21... c4 {[%clk 0:01:45.6]} 22. Qxe5 {[%clk
0:00:45.9]} 22... fxe5 {[%clk 0:01:45.2]} 23. Bc2 {[%clk 0:00:46.3]} 23... Nb7
{[%clk 0:01:45.5]} 24. f4 {[%clk 0:00:34]} 24... exf4 {[%clk 0:01:44.8]} 25.
Nxf4 {[%clk 0:00:34.9]} 25... Nc5 {[%clk 0:01:43.2]} 26. Rf1 {[%clk 0:00:28.9]}
26... Kg7 {[%clk 0:01:41.2]} 27. Rce1 {[%clk 0:00:23.7]} 27... Bf7 {[%clk
0:01:40.6]} 28. Nh3 {[%clk 0:00:13.4]} 28... h6 {[%clk 0:01:39.4]} 29. Nf2
{[%clk 0:00:11.7]} 29... h5 {[%clk 0:01:31.2]} 30. Nh3 {[%clk 0:00:11.6]} 30...
Nd7 {[%clk 0:01:27.1]} 31. Ng5 {[%clk 0:00:11.8]} 31... Bg8 {[%clk 0:01:27.4]}
32. Ne6+ {[%clk 0:00:09.6]} 32... Bxe6 {[%clk 0:01:27.1]} 33. dxe6 {[%clk
0:00:10.5]} 33... Ne5 {[%clk 0:01:27.8]} 34. Re2 {[%clk 0:00:07.8]} 34... Rc6
{[%clk 0:01:27.2]} 35. Ref2 {[%clk 0:00:07.8]} 35... Rxe6 {[%clk 0:01:27.4]} 36.
Bd1 {[%clk 0:00:06]} 36... Rf6 {[%clk 0:01:27.4]} 37. Be2 {[%clk 0:00:06.2]}
37... Rd2 {[%clk 0:01:26.4]} 38. Bd1 {[%clk 0:00:02.3]} 38... Rfxf2 {[%clk
0:01:24.9]} 39. Rxf2 {[%clk 0:00:03.2]} 39... Rxd1+ {[%clk 0:01:25.6]} 40. Rf1
{[%clk 0:00:03]} 40... Rxf1+ {[%clk 0:01:26.5]} 41. Kxf1 {[%clk 0:00:03.9]}
41... Kf6 {[%clk 0:01:27]} 42. Ke2 {[%clk 0:00:04.4]} 42... Ke6 {[%clk
0:01:27.6]} 43. Ke3 {[%clk 0:00:05.3]} 43... Kd6 {[%clk 0:01:28.5]} 44. g3
{[%clk 0:00:05.9]} 44... g5 {[%clk 0:01:28.7]} 45. h3 {[%clk 0:00:06.1]} 45...
Nd3 {[%clk 0:01:25.3]} 46. h4 {[%clk 0:00:05.9]} 46... gxh4 {[%clk 0:01:24.8]}
47. gxh4 {[%clk 0:00:05.9]} 47... Ke5 {[%clk 0:01:24.7]} 48. a4 {[%clk
0:00:05.2]} 48... e6 {[%clk 0:01:21.1]} 49. Kf3 {[%clk 0:00:04.8]} 49... Nb2
{[%clk 0:01:18.5]} 0-1

[Event "*** Titled Tuesday Blitz"]
[Site "Chess.com"]
[Date "2020.04.21"]
[Round "1"]
[White "Mazanchenko_Dmitry"]
[Black "tsvet2005"]
[Result "0-1"]
[WhiteElo "2110"]
[BlackElo "2517"]
[TimeControl "180+1"]
[EndTime "10:06:46 PDT"]
[Termination "tsvet2005 won by checkmate"]

1. e3 {[%clk 0:03:00.9]} 1... d5 {[%clk 0:02:59.8]} 2. d4 {[%clk 0:03:01.8]}
2... Nf6 {[%clk 0:02:59.9]} 3. Bd3 {[%clk 0:03:01.3]} 3... c5 {[%clk 0:02:59.2]}
4. c3 {[%clk 0:03:01]} 4... Nc6 {[%clk 0:02:57.4]} 5. h3 {[%clk 0:03:00]} 5...
e6 {[%clk 0:02:57.1]} 6. Nf3 {[%clk 0:02:59.8]} 6... Be7 {[%clk 0:02:56.2]} 7.
O-O {[%clk 0:03:00.2]} 7... O-O {[%clk 0:02:56.5]} 8. Nbd2 {[%clk 0:02:59.4]}
8... b6 {[%clk 0:02:56.5]} 9. Qe2 {[%clk 0:02:59.2]} 9... Bb7 {[%clk 0:02:56.2]}
10. dxc5 {[%clk 0:02:59.4]} 10... bxc5 {[%clk 0:02:55.9]} 11. e4 {[%clk
0:02:59.7]} 11... d4 {[%clk 0:02:54.3]} 12. cxd4 {[%clk 0:02:51.6]} 12... cxd4
{[%clk 0:02:54.2]} 13. e5 {[%clk 0:02:51.3]} 13... Nd5 {[%clk 0:02:48.1]} 14.
Nb3 {[%clk 0:02:43.5]} 14... Ndb4 {[%clk 0:02:39.8]} 15. Be4 {[%clk 0:02:39.6]}
15... Ba6 {[%clk 0:02:36.1]} 16. Qd2 {[%clk 0:02:25.4]} 16... Bxf1 {[%clk
0:02:34.4]} 17. Kxf1 {[%clk 0:02:26.3]} 17... Rc8 {[%clk 0:02:30.4]} 18. a3
{[%clk 0:02:20]} 18... Nd5 {[%clk 0:02:29.9]} 19. Nbxd4 {[%clk 0:02:15.6]} 19...
Nxd4 {[%clk 0:02:22.4]} 20. Nxd4 {[%clk 0:02:16.5]} 20... Qc7 {[%clk 0:02:18.4]}
21. Nf3 {[%clk 0:01:58.9]} 21... Rfd8 {[%clk 0:02:16.4]} 22. Qe2 {[%clk
0:01:47.5]} 22... Qxc1+ {[%clk 0:01:56.3]} 23. Rxc1 {[%clk 0:01:45.3]} 23...
Rxc1+ {[%clk 0:01:57.2]} 24. Ne1 {[%clk 0:01:44.8]} 24... Nf4 {[%clk 0:01:53.3]}
25. Bxh7+ {[%clk 0:00:41]} 25... Kxh7 {[%clk 0:01:46.1]} 26. Qe4+ {[%clk
0:00:40.6]} 26... Ng6 {[%clk 0:01:44.9]} 27. Ke2 {[%clk 0:00:33.8]} 27... Rc5
{[%clk 0:01:25.2]} 28. f4 {[%clk 0:00:20.9]} 28... Rcd5 {[%clk 0:01:16.5]} 29.
g3 {[%clk 0:00:17.5]} 29... Rd2+ {[%clk 0:01:13.7]} 30. Kf3 {[%clk 0:00:16]}
30... Rxb2 {[%clk 0:01:13.6]} 31. h4 {[%clk 0:00:15.5]} 31... Kg8 {[%clk
0:01:06.6]} 32. h5 {[%clk 0:00:15.3]} 32... Nf8 {[%clk 0:01:06.7]} 33. Kg4
{[%clk 0:00:15.4]} 33... Rb3 {[%clk 0:01:03.4]} 34. Nf3 {[%clk 0:00:13.9]} 34...
Rdd3 {[%clk 0:01:03.3]} 35. Ng5 {[%clk 0:00:07.4]} 35... Rxg3+ {[%clk
0:01:03.2]} 36. Kh4 {[%clk 0:00:07.6]} 36... Rh3+ {[%clk 0:01:02.1]} 37. Kg4
{[%clk 0:00:07.7]} 37... Rbg3# {[%clk 0:01:03]} 0-1

[Event "*** Titled Tuesday Blitz"]
[Site "Chess.com"]
[Date "2020.04.21"]
[Round "1"]
[White "Omk124"]
[Black "Zubrrr"]
[Result "0-1"]
[WhiteElo "2356"]
[BlackElo "2689"]
[TimeControl "180+1"]
[EndTime "10:06:47 PDT"]
[Termination "Zubrrr won by resignation"]

1. e4 {[%clk 0:02:46.7]} 1... c5 {[%clk 0:02:58.8]} 2. Nf3 {[%clk 0:02:46.4]}
2... d6 {[%clk 0:02:59.1]} 3. d4 {[%clk 0:02:46.2]} 3... cxd4 {[%clk 0:02:59.8]}
4. Nxd4 {[%clk 0:02:47.1]} 4... Nf6 {[%clk 0:03:00.2]} 5. Nc3 {[%clk 0:02:46.7]}
5... a6 {[%clk 0:03:00.8]} 6. g3 {[%clk 0:02:46.9]} 6... e5 {[%clk 0:03:00.4]}
7. Nde2 {[%clk 0:02:47.1]} 7... Be7 {[%clk 0:02:59.2]} 8. a4 {[%clk 0:02:46.9]}
8... O-O {[%clk 0:02:59]} 9. Bg2 {[%clk 0:02:47.3]} 9... Be6 {[%clk 0:02:59.3]}
10. O-O {[%clk 0:02:47.3]} 10... Nbd7 {[%clk 0:02:59.9]} 11. h3 {[%clk
0:02:47.7]} 11... Rc8 {[%clk 0:02:59]} 12. Be3 {[%clk 0:02:47.9]} 12... Nb8
{[%clk 0:02:24.2]} 13. g4 {[%clk 0:02:47.1]} 13... Nc6 {[%clk 0:02:16.8]} 14.
Nd5 {[%clk 0:02:37.2]} 14... Nd7 {[%clk 0:01:59.6]} 15. c3 {[%clk 0:02:32.2]}
15... Bg5 {[%clk 0:01:54.1]} 16. f4 {[%clk 0:02:19.8]} 16... exf4 {[%clk
0:01:55]} 17. Nexf4 {[%clk 0:02:20.4]} 17... Nce5 {[%clk 0:01:49.2]} 18. Bd4
{[%clk 0:02:14.4]} 18... Re8 {[%clk 0:01:39.4]} 19. b3 {[%clk 0:02:04.8]} 19...
Nc5 {[%clk 0:01:30.4]} 20. a5 {[%clk 0:01:59.1]} 20... Bxf4 {[%clk 0:01:21]} 21.
Rxf4 {[%clk 0:01:26.9]} 21... Qg5 {[%clk 0:01:20.9]} 22. Be3 {[%clk 0:01:23.4]}
22... Bxd5 {[%clk 0:00:55.3]} 23. exd5 {[%clk 0:00:48.7]} 23... Nxg4 {[%clk
0:00:51.1]} 24. Bd2 {[%clk 0:00:30.5]} 24... Ne3 {[%clk 0:00:47.7]} 25. Bxe3
{[%clk 0:00:30.2]} 25... Rxe3 {[%clk 0:00:47.3]} 26. b4 {[%clk 0:00:30.7]} 26...
Qxf4 {[%clk 0:00:46.5]} 27. bxc5 {[%clk 0:00:30.2]} 27... Rxc5 {[%clk
0:00:47.4]} 28. Rb1 {[%clk 0:00:30.1]} 28... Rexc3 {[%clk 0:00:38.3]} 29. Rxb7
{[%clk 0:00:27.2]} 29... g6 {[%clk 0:00:35.7]} 30. Qe2 {[%clk 0:00:22.5]} 30...
Rc1+ {[%clk 0:00:31.8]} 31. Bf1 {[%clk 0:00:22.2]} 31... Rxf1+ {[%clk
0:00:20.7]} 32. Qxf1 {[%clk 0:00:21.7]} 32... Rc1 {[%clk 0:00:20.6]} 0-1

[Event "*** Titled Tuesday Blitz"]
[Site "Chess.com"]
[Date "2020.04.21"]
[Round "1"]
[White "FLamps8"]
[Black "TV27"]
[Result "1-0"]
[WhiteElo "2520"]
[BlackElo "2116"]
[TimeControl "180+1"]
[EndTime "10:06:47 PDT"]
[Termination "FLamps8 won by resignation"]

1. d4 {[%clk 0:02:59.2]} 1... f5 {[%clk 0:02:58.8]} 2. Nc3 {[%clk 0:02:58.5]}
2... Nf6 {[%clk 0:02:57.7]} 3. Bg5 {[%clk 0:02:50.3]} 3... d5 {[%clk 0:02:55.4]}
4. Bxf6 {[%clk 0:02:48.9]} 4... exf6 {[%clk 0:02:54.4]} 5. e3 {[%clk 0:02:29.9]}
5... Bd6 {[%clk 0:02:51.7]} 6. Nxd5 {[%clk 0:02:25.8]} 6... O-O {[%clk
0:02:49.4]} 7. Nc3 {[%clk 0:02:25.5]} 7... f4 {[%clk 0:02:45]} 8. e4 {[%clk
0:02:22.3]} 8... Re8 {[%clk 0:02:38]} 9. Bc4+ {[%clk 0:02:14.1]} 9... Kh8 {[%clk
0:02:36.6]} 10. Nf3 {[%clk 0:02:14.4]} 10... Bg4 {[%clk 0:02:25.5]} 11. h3
{[%clk 0:02:12.8]} 11... Bh5 {[%clk 0:02:18.7]} 12. Qd3 {[%clk 0:02:06.1]} 12...
Nc6 {[%clk 0:02:16.6]} 13. a3 {[%clk 0:01:56.4]} 13... a6 {[%clk 0:01:59.5]} 14.
O-O-O {[%clk 0:01:49.5]} 14... b5 {[%clk 0:01:58.4]} 15. Bb3 {[%clk 0:01:43.5]}
15... b4 {[%clk 0:01:57.3]} 16. axb4 {[%clk 0:01:44.4]} 16... Nxb4 {[%clk
0:01:56.9]} 17. Qc4 {[%clk 0:01:44.5]} 17... Rb8 {[%clk 0:01:17.3]} 18. e5
{[%clk 0:01:39.8]} 18... Be7 {[%clk 0:01:13.6]} 19. Ne4 {[%clk 0:01:24.9]} 19...
f5 {[%clk 0:00:49.8]} 20. Nc5 {[%clk 0:01:21.4]} 20... Bxc5 {[%clk 0:00:46.1]}
21. dxc5 {[%clk 0:01:16.6]} 21... Qe7 {[%clk 0:00:44.6]} 22. Qxf4 {[%clk
0:01:16.2]} 22... Bf7 {[%clk 0:00:37.3]} 23. e6 {[%clk 0:01:08.9]} 23... Bxe6
{[%clk 0:00:35.6]} 24. Rhe1 {[%clk 0:01:08.2]} 24... Qf7 {[%clk 0:00:34.1]} 25.
Ng5 {[%clk 0:01:07.6]} 25... Qf6 {[%clk 0:00:19.1]} 26. Rxe6 {[%clk 0:01:04.7]}
26... Na2+ {[%clk 0:00:17.8]} 27. Kb1 {[%clk 0:01:01.3]} 27... Rxe6 {[%clk
0:00:16.3]} 28. Nxe6 {[%clk 0:00:59.9]} 28... Nc3+ {[%clk 0:00:10.8]} 29. bxc3
{[%clk 0:00:46.2]} 29... Qxc3 {[%clk 0:00:11]} 30. Rd8+ {[%clk 0:00:35.1]} 30...
Rxd8 {[%clk 0:00:10.1]} 31. Nxd8 {[%clk 0:00:36]} 31... Qe1+ {[%clk 0:00:08.9]}
32. Kb2 {[%clk 0:00:35.9]} 1-0

[Event "*** Titled Tuesday Blitz"]
[Site "Chess.com"]
[Date "2020.04.21"]
[Round "1"]
[White "Grootneus"]
[Black "DrVitman"]
[Result "0-1"]
[WhiteElo "2146"]
[BlackElo "2538"]
[TimeControl "180+1"]
[EndTime "10:06:48 PDT"]
[Termination "DrVitman won by resignation"]

1. e4 {[%clk 0:03:00.9]} 1... c5 {[%clk 0:02:59.5]} 2. Nf3 {[%clk 0:03:00.7]}
2... Nc6 {[%clk 0:03:00.1]} 3. Bb5 {[%clk 0:03:00.8]} 3... g6 {[%clk 0:02:59.8]}
4. c3 {[%clk 0:02:59.4]} 4... Bg7 {[%clk 0:02:56.8]} 5. O-O {[%clk 0:02:51.1]}
5... e5 {[%clk 0:02:55.7]} 6. d4 {[%clk 0:02:45.9]} 6... cxd4 {[%clk 0:02:51.5]}
7. cxd4 {[%clk 0:02:46.8]} 7... Nxd4 {[%clk 0:02:51.7]} 8. Nxd4 {[%clk
0:02:46.6]} 8... exd4 {[%clk 0:02:52.6]} 9. f4 {[%clk 0:02:47.2]} 9... a6 {[%clk
0:02:44.3]} 10. Ba4 {[%clk 0:02:27.3]} 10... b5 {[%clk 0:02:42.6]} 11. Bb3
{[%clk 0:02:21.3]} 11... Bb7 {[%clk 0:02:41.4]} 12. f5 {[%clk 0:02:13.6]} 12...
d5 {[%clk 0:02:31.4]} 13. exd5 {[%clk 0:02:00.7]} 13... Bxd5 {[%clk 0:02:25]}
14. Qe1+ {[%clk 0:01:34.3]} 14... Kf8 {[%clk 0:02:14.2]} 15. Qb4+ {[%clk
0:01:33.7]} 15... Qe7 {[%clk 0:02:00.5]} 16. Qxe7+ {[%clk 0:01:33.2]} 16... Nxe7
{[%clk 0:02:01.4]} 17. f6 {[%clk 0:01:33.4]} 17... Bxf6 {[%clk 0:01:56.7]} 18.
Rxf6 {[%clk 0:01:34.3]} 18... Kg7 {[%clk 0:01:56.8]} 19. Rf1 {[%clk 0:01:29.1]}
19... Bxb3 {[%clk 0:01:43.7]} 20. axb3 {[%clk 0:01:30]} 20... Nd5 {[%clk
0:01:43.4]} 21. Bf4 {[%clk 0:01:14.4]} 21... Rhe8 {[%clk 0:01:35.5]} 22. Nd2
{[%clk 0:01:05.1]} 22... Re2 {[%clk 0:01:31.7]} 23. Rad1 {[%clk 0:00:56.7]}
23... Rc8 {[%clk 0:01:28.1]} 24. Bg5 {[%clk 0:00:34.1]} 24... f6 {[%clk
0:01:14.7]} 25. Bh4 {[%clk 0:00:18.2]} 25... Rc2 {[%clk 0:01:14]} 26. Rf2 {[%clk
0:00:18.4]} 26... d3 {[%clk 0:01:00.5]} 27. Bxf6+ {[%clk 0:00:01.8]} 27... Nxf6
{[%clk 0:00:59]} 28. Kf1 {[%clk 0:00:01.8]} 28... Rxf2+ {[%clk 0:00:57.5]} 29.
Kxf2 {[%clk 0:00:02.1]} 29... Nd5 {[%clk 0:00:41.9]} 30. Kf3 {[%clk 0:00:01.9]}
30... Rxb2 {[%clk 0:00:40.7]} 31. Ke4 {[%clk 0:00:02]} 31... Nc3+ {[%clk
0:00:39.7]} 32. Kxd3 {[%clk 0:00:01.7]} 32... Nxd1 {[%clk 0:00:40.6]} 0-1

[Event "*** Titled Tuesday Blitz"]
[Site "Chess.com"]
[Date "2020.04.21"]
[Round "1"]
[White "stanyga"]
[Black "Rap_woyska"]
[Result "1-0"]
[WhiteElo "2695"]
[BlackElo "2358"]
[TimeControl "180+1"]
[EndTime "10:06:49 PDT"]
[Termination "stanyga won by checkmate"]

1. e4 {[%clk 0:03:00.9]} 1... e6 {[%clk 0:02:59.7]} 2. d4 {[%clk 0:03:00.2]}
2... d5 {[%clk 0:03:00.2]} 3. e5 {[%clk 0:03:00.7]} 3... c5 {[%clk 0:02:59.7]}
4. c3 {[%clk 0:02:59.3]} 4... Qb6 {[%clk 0:03:00.2]} 5. Nf3 {[%clk 0:02:58.4]}
5... Nc6 {[%clk 0:03:00.4]} 6. a3 {[%clk 0:02:57]} 6... Nh6 {[%clk 0:03:00.2]}
7. b4 {[%clk 0:02:53.7]} 7... cxd4 {[%clk 0:03:00.5]} 8. cxd4 {[%clk 0:02:53.2]}
8... Nf5 {[%clk 0:03:01.4]} 9. Be3 {[%clk 0:02:51.4]} 9... Nxe3 {[%clk
0:03:00.8]} 10. fxe3 {[%clk 0:02:51]} 10... f6 {[%clk 0:03:01.7]} 11. exf6
{[%clk 0:02:47.3]} 11... gxf6 {[%clk 0:03:02.6]} 12. Bd3 {[%clk 0:02:46.4]}
12... Bh6 {[%clk 0:03:03.1]} 13. Qe2 {[%clk 0:02:42.9]} 13... Bd7 {[%clk
0:03:03.5]} 14. Nc3 {[%clk 0:02:32.5]} 14... Ne7 {[%clk 0:03:03.4]} 15. O-O
{[%clk 0:02:28.2]} 15... O-O-O {[%clk 0:02:58.2]} 16. Nd2 {[%clk 0:02:21.6]}
16... f5 {[%clk 0:02:52.1]} 17. Nb3 {[%clk 0:02:19.8]} 17... Kb8 {[%clk
0:02:51.6]} 18. Nc5 {[%clk 0:02:18.5]} 18... Qd6 {[%clk 0:02:30.3]} 19. a4
{[%clk 0:02:04.2]} 19... f4 {[%clk 0:02:30]} 20. Nb5 {[%clk 0:01:41.3]} 20...
Bxb5 {[%clk 0:02:22.4]} 21. axb5 {[%clk 0:01:40.8]} 21... fxe3 {[%clk
0:01:42.4]} 22. Rf6 {[%clk 0:01:37.8]} 22... Bf4 {[%clk 0:01:15.9]} 23. h3
{[%clk 0:01:33.9]} 23... Rhe8 {[%clk 0:00:50.8]} 24. Rxe6 {[%clk 0:01:32.5]}
24... Qc7 {[%clk 0:00:50]} 25. Qa2 {[%clk 0:01:03.8]} 25... Nc8 {[%clk
0:00:45.4]} 26. b6 {[%clk 0:01:01.1]} 26... Qg7 {[%clk 0:00:31]} 27. bxa7+
{[%clk 0:00:51.6]} 27... Ka8 {[%clk 0:00:31.2]} 28. Ba6 {[%clk 0:00:45.3]} 28...
bxa6 {[%clk 0:00:12.3]} 29. Qxa6 {[%clk 0:00:43.4]} 29... Rxe6 {[%clk
0:00:12.8]} 30. Nxe6 {[%clk 0:00:39.5]} 30... Rd6 {[%clk 0:00:03]} 31. Qxc8#
{[%clk 0:00:37.5]} 1-0

[Event "*** Titled Tuesday Blitz"]
[Site "Chess.com"]
[Date "2020.04.21"]
[Round "1"]
[White "KubaGepard"]
[Black "Keaton87"]
[Result "0-1"]
[WhiteElo "2342"]
[BlackElo "2675"]
[TimeControl "180+1"]
[EndTime "10:06:49 PDT"]
[Termination "Keaton87 won by resignation"]

1. d4 {[%clk 0:03:00.9]} 1... d5 {[%clk 0:02:59.5]} 2. Nf3 {[%clk 0:03:00.6]}
2... Nf6 {[%clk 0:02:58.8]} 3. Bf4 {[%clk 0:03:00.9]} 3... c5 {[%clk 0:02:57.7]}
4. e3 {[%clk 0:02:59.4]} 4... Nc6 {[%clk 0:02:57.3]} 5. Nbd2 {[%clk 0:02:59.4]}
5... cxd4 {[%clk 0:02:57]} 6. exd4 {[%clk 0:02:59.1]} 6... Qb6 {[%clk
0:02:57.4]} 7. Nb3 {[%clk 0:02:22.7]} 7... Bg4 {[%clk 0:02:57.3]} 8. Be2 {[%clk
0:02:21.9]} 8... e6 {[%clk 0:02:57.5]} 9. O-O {[%clk 0:02:21.4]} 9... Be7 {[%clk
0:02:57.7]} 10. Ne5 {[%clk 0:02:19.9]} 10... Bxe2 {[%clk 0:02:54.9]} 11. Qxe2
{[%clk 0:02:20]} 11... O-O {[%clk 0:02:51.6]} 12. Nxc6 {[%clk 0:02:17.2]} 12...
bxc6 {[%clk 0:02:48.3]} 13. a4 {[%clk 0:02:15.3]} 13... a5 {[%clk 0:02:45.5]}
14. Bg5 {[%clk 0:02:10.3]} 14... h6 {[%clk 0:02:40.2]} 15. Bxf6 {[%clk
0:02:07.5]} 15... Bxf6 {[%clk 0:02:41.1]} 16. Qd2 {[%clk 0:02:07.6]} 16... Be7
{[%clk 0:02:38.8]} 17. f4 {[%clk 0:02:04.7]} 17... c5 {[%clk 0:02:38.5]} 18.
dxc5 {[%clk 0:02:04.2]} 18... Bxc5+ {[%clk 0:02:38.7]} 19. Nxc5 {[%clk
0:02:04.7]} 19... Qxc5+ {[%clk 0:02:38.6]} 20. Qf2 {[%clk 0:02:04.4]} 20... Rfc8
{[%clk 0:02:36.2]} 21. Qxc5 {[%clk 0:02:02.4]} 21... Rxc5 {[%clk 0:02:37.1]} 22.
c3 {[%clk 0:02:02.7]} 22... Rb8 {[%clk 0:02:35.1]} 23. Rfb1 {[%clk 0:02:00.2]}
23... Rc4 {[%clk 0:02:33.7]} 24. g3 {[%clk 0:02:00]} 24... g5 {[%clk 0:02:30.5]}
25. fxg5 {[%clk 0:01:59]} 25... hxg5 {[%clk 0:02:31.4]} 26. Kf2 {[%clk
0:01:54.1]} 26... f5 {[%clk 0:02:26.1]} 27. Ke3 {[%clk 0:01:52.8]} 27... Kf7
{[%clk 0:02:25.8]} 28. Kd3 {[%clk 0:01:52.2]} 28... Kf6 {[%clk 0:02:21]} 29. b3
{[%clk 0:01:49.5]} 29... Re4 {[%clk 0:02:19.9]} 30. b4 {[%clk 0:01:48.9]} 30...
f4 {[%clk 0:02:07.2]} 31. b5 {[%clk 0:01:32.5]} 31... e5 {[%clk 0:02:02.1]} 32.
b6 {[%clk 0:01:31.3]} 32... Rc4 {[%clk 0:01:57.4]} 33. Rb5 {[%clk 0:01:29.6]}
33... e4+ {[%clk 0:01:55.1]} 34. Kd2 {[%clk 0:01:29]} 34... Ke5 {[%clk
0:01:50.6]} 35. gxf4+ {[%clk 0:01:24.9]} 35... gxf4 {[%clk 0:01:50.2]} 36. Rg1
{[%clk 0:01:25.1]} 36... Rxa4 {[%clk 0:01:23.4]} 37. Rg5+ {[%clk 0:01:24]} 37...
Ke6 {[%clk 0:01:17.8]} 38. Rbxd5 {[%clk 0:01:23.2]} 38... Ra2+ {[%clk
0:01:17.2]} 39. Kd1 {[%clk 0:01:22.5]} 39... Rxb6 {[%clk 0:00:58.4]} 40. Rge5+
{[%clk 0:01:15.9]} 40... Kf7 {[%clk 0:00:57.3]} 41. Rf5+ {[%clk 0:01:09.2]}
41... Ke7 {[%clk 0:00:52]} 42. Rfe5+ {[%clk 0:01:03.8]} 42... Re6 {[%clk
0:00:51.8]} 43. Rxa5 {[%clk 0:01:03.3]} 43... Rxh2 {[%clk 0:00:43.8]} 44. Ra7+
{[%clk 0:00:52.4]} 44... Kf6 {[%clk 0:00:43.6]} 45. Rd5 {[%clk 0:00:44.3]} 45...
e3 {[%clk 0:00:43.5]} 0-1